[Event "*** Titled Tuesday Blitz"]
[Site "Chess.com"]
[Date "2020.11.03"]
[Round "3"]
[White "cstevens1"]
[Black "exoticprincess"]
[Result "1-0"]
[WhiteElo "2679"]
[BlackElo "2875"]
[TimeControl "180+1"]
[EndTime "10:31:37 PST"]
[Termination "cstevens1 won on time"]

1. Nf3 {[%clk 0:03:00.9]} 1... d5 {[%clk 0:02:56.2]} 2. g3 {[%clk 0:03:01.8]}
2... c6 {[%clk 0:02:54.9]} 3. Bg2 {[%clk 0:03:02.2]} 3... Nf6 {[%clk 0:02:55.5]}
4. O-O {[%clk 0:03:02.7]} 4... Bf5 {[%clk 0:02:55.8]} 5. d3 {[%clk 0:03:03.1]}
5... h6 {[%clk 0:02:55.9]} 6. Nbd2 {[%clk 0:03:04]} 6... e6 {[%clk 0:02:55.9]}
7. Qe1 {[%clk 0:03:04.9]} 7... Bh7 {[%clk 0:02:55.2]} 8. e4 {[%clk 0:03:05.8]}
8... Be7 {[%clk 0:02:55.6]} 9. Qe2 {[%clk 0:03:05.8]} 9... O-O {[%clk
0:02:55.4]} 10. Re1 {[%clk 0:03:06.3]} 10... a5 {[%clk 0:02:55.1]} 11. a4 {[%clk
0:03:05.9]} 11... Na6 {[%clk 0:02:54.6]} 12. b3 {[%clk 0:03:06.3]} 12... Nb4
{[%clk 0:02:53.2]} 13. e5 {[%clk 0:03:04]} 13... Nxc2 {[%clk 0:02:47.7]} 14.
exf6 {[%clk 0:03:03.6]} 14... Bxf6 {[%clk 0:02:48.2]} 15. Rb1 {[%clk 0:02:57.3]}
15... Nb4 {[%clk 0:02:45.6]} 16. d4 {[%clk 0:02:39.6]} 16... Nc2 {[%clk
0:02:36.5]} 17. Bb2 {[%clk 0:02:33.5]} 17... Nxe1 {[%clk 0:02:34.2]} 18. Rxe1
{[%clk 0:02:33.4]} 18... Be7 {[%clk 0:02:02.5]} 19. Ne5 {[%clk 0:02:31.9]} 19...
Bb4 {[%clk 0:02:02]} 20. Rc1 {[%clk 0:02:29]} 20... Rc8 {[%clk 0:01:56.4]} 21.
Nd3 {[%clk 0:02:23.7]} 21... Bxd3 {[%clk 0:01:53.9]} 22. Qxd3 {[%clk 0:02:23.5]}
22... Qb6 {[%clk 0:01:52.3]} 23. Nf3 {[%clk 0:02:09.5]} 23... Bd6 {[%clk
0:01:44.9]} 24. Rf1 {[%clk 0:01:49.2]} 24... Qb4 {[%clk 0:01:37.5]} 25. h4
{[%clk 0:01:37.7]} 25... b5 {[%clk 0:01:36]} 26. Ra1 {[%clk 0:01:32.5]} 26...
bxa4 {[%clk 0:01:30.2]} 27. Rxa4 {[%clk 0:01:31.8]} 27... Qb5 {[%clk 0:01:24.8]}
28. Bf1 {[%clk 0:01:16.4]} 28... Qxd3 {[%clk 0:01:23.6]} 29. Bxd3 {[%clk
0:01:17.3]} 29... Bb4 {[%clk 0:01:21.3]} 30. Ne5 {[%clk 0:01:14.6]} 30... Rfd8
{[%clk 0:01:21]} 31. Kf1 {[%clk 0:01:05]} 31... c5 {[%clk 0:01:18.4]} 32. dxc5
{[%clk 0:00:58.7]} 32... Rxc5 {[%clk 0:01:19.3]} 33. Ke2 {[%clk 0:00:55.8]}
33... Bc3 {[%clk 0:01:10.1]} 34. Bxc3 {[%clk 0:00:54.3]} 34... Rxc3 {[%clk
0:01:09.9]} 35. Rxa5 {[%clk 0:00:46.1]} 35... Rxb3 {[%clk 0:01:10.1]} 36. Ra7
{[%clk 0:00:43.4]} 36... Rf8 {[%clk 0:00:57.7]} 37. Nd7 {[%clk 0:00:39.5]} 37...
Re8 {[%clk 0:00:28.4]} 38. Ne5 {[%clk 0:00:36.9]} 38... f6 {[%clk 0:00:26.9]}
39. Bg6 {[%clk 0:00:33.4]} 39... Rb2+ {[%clk 0:00:19.5]} 40. Kf3 {[%clk
0:00:31.4]} 40... Reb8 {[%clk 0:00:13.7]} 41. Nd7 {[%clk 0:00:19.9]} 41... Rc8
{[%clk 0:00:12]} 42. Ra6 {[%clk 0:00:09.8]} 42... e5 {[%clk 0:00:08.3]} 43. Bf5
{[%clk 0:00:09.3]} 43... Rc3+ {[%clk 0:00:06.4]} 44. Kg4 {[%clk 0:00:09]} 44...
Kf7 {[%clk 0:00:04.6]} 45. Ra7 {[%clk 0:00:07.8]} 45... Rb4+ {[%clk 0:00:04.6]}
46. Kh3 {[%clk 0:00:07.6]} 46... Ke8 {[%clk 0:00:04.9]} 47. Ra8+ {[%clk
0:00:07.3]} 47... Ke7 {[%clk 0:00:05]} 48. Ra7 {[%clk 0:00:07.7]} 48... Kd6
{[%clk 0:00:05.4]} 49. Nf8 {[%clk 0:00:07.9]} 49... Rc7 {[%clk 0:00:04.8]} 50.
Ra8 {[%clk 0:00:07.2]} 50... e4 {[%clk 0:00:04.3]} 51. Ng6 {[%clk 0:00:06.9]}
51... Rb2 {[%clk 0:00:03.4]} 52. Rd8+ {[%clk 0:00:07.2]} 52... Kc5 {[%clk
0:00:03.1]} 53. Nf4 {[%clk 0:00:08.1]} 53... Ra7 {[%clk 0:00:01.9]} 54. Rxd5+
{[%clk 0:00:08.4]} 54... Kc4 {[%clk 0:00:02.4]} 55. Bxe4 {[%clk 0:00:09.2]}
55... Rxf2 {[%clk 0:00:02.4]} 56. Rd8 {[%clk 0:00:09.2]} 1-0

[Event "*** Titled Tuesday Blitz"]
[Site "Chess.com"]
[Date "2020.11.03"]
[Round "3"]
[White "Gloomy_Wanderer"]
[Black "elisak43"]
[Result "1-0"]
[WhiteElo "2696"]
[BlackElo "2491"]
[TimeControl "180+1"]
[EndTime "10:31:39 PST"]
[Termination "Gloomy_Wanderer won by checkmate"]

1. d4 {[%clk 0:03:00.9]} 1... f6 {[%clk 0:02:59.4]} 2. e4 {[%clk 0:02:57.7]}
2... e6 {[%clk 0:02:55.1]} 3. Nc3 {[%clk 0:02:54.4]} 3... d5 {[%clk 0:02:55]} 4.
exd5 {[%clk 0:02:49.8]} 4... exd5 {[%clk 0:02:55.3]} 5. Qh5+ {[%clk 0:02:49.7]}
5... g6 {[%clk 0:02:52.5]} 6. Qxd5 {[%clk 0:02:49.7]} 6... Qxd5 {[%clk
0:02:50.6]} 7. Nxd5 {[%clk 0:02:49.8]} 7... Bd6 {[%clk 0:02:50.9]} 8. Bf4 {[%clk
0:02:48.6]} 8... Bxf4 {[%clk 0:02:45.5]} 9. Nxf4 {[%clk 0:02:49.5]} 9... Ne7
{[%clk 0:02:41]} 10. O-O-O {[%clk 0:02:46.8]} 10... g5 {[%clk 0:02:38.6]} 11.
Nd3 {[%clk 0:02:34.8]} 11... Nbc6 {[%clk 0:02:34.7]} 12. c3 {[%clk 0:02:33.4]}
12... b6 {[%clk 0:02:27.7]} 13. h4 {[%clk 0:02:32.9]} 13... Bf5 {[%clk 0:01:48]}
14. Ne2 {[%clk 0:02:23.5]} 14... O-O-O {[%clk 0:01:43]} 15. Ng3 {[%clk
0:02:21.6]} 15... Bg6 {[%clk 0:01:40.1]} 16. Be2 {[%clk 0:02:06]} 16... h6
{[%clk 0:01:36.4]} 17. Bf3 {[%clk 0:01:38]} 17... Na5 {[%clk 0:01:10.4]} 18.
hxg5 {[%clk 0:01:30.4]} 18... hxg5 {[%clk 0:01:10]} 19. Rhe1 {[%clk 0:01:30.7]}
19... Nd5 {[%clk 0:01:06.6]} 20. Bg4+ {[%clk 0:01:11.2]} 20... Kb8 {[%clk
0:01:04.1]} 21. Bf5 {[%clk 0:01:11.5]} 21... Bxf5 {[%clk 0:00:59.8]} 22. Nxf5
{[%clk 0:01:12.4]} 22... Nc4 {[%clk 0:01:00.4]} 23. Rh1 {[%clk 0:01:03.7]} 23...
a5 {[%clk 0:00:54.6]} 24. Rde1 {[%clk 0:01:03]} 24... a4 {[%clk 0:00:52.2]} 25.
Kc2 {[%clk 0:01:01.1]} 25... Kb7 {[%clk 0:00:47.5]} 26. b3 {[%clk 0:00:58.6]}
26... axb3+ {[%clk 0:00:46.8]} 27. axb3 {[%clk 0:00:59.5]} 27... Na5 {[%clk
0:00:38.5]} 28. c4 {[%clk 0:00:48.1]} 28... Nf4 {[%clk 0:00:32.3]} 29. Nxf4
{[%clk 0:00:41.4]} 29... gxf4 {[%clk 0:00:33.2]} 30. Rxh8 {[%clk 0:00:37.6]}
30... Rxh8 {[%clk 0:00:32.4]} 31. Re4 {[%clk 0:00:35.8]} 31... Rh2 {[%clk
0:00:29.1]} 32. Rxf4 {[%clk 0:00:36]} 32... Rxg2 {[%clk 0:00:29.3]} 33. Ne3
{[%clk 0:00:36.5]} 33... Rg6 {[%clk 0:00:24.7]} 34. Nd5 {[%clk 0:00:36.6]} 34...
Nc6 {[%clk 0:00:22.7]} 35. Kc3 {[%clk 0:00:36.9]} 35... Rg1 {[%clk 0:00:18.7]}
36. Nxf6 {[%clk 0:00:35.6]} 36... Rc1+ {[%clk 0:00:18.4]} 37. Kb2 {[%clk
0:00:34.8]} 37... Rf1 {[%clk 0:00:19.3]} 38. Ng4 {[%clk 0:00:31.4]} 38... Nb4
{[%clk 0:00:18.9]} 39. Kc3 {[%clk 0:00:24.4]} 39... Na2+ {[%clk 0:00:18.5]} 40.
Kd2 {[%clk 0:00:24.2]} 40... Rb1 {[%clk 0:00:15.9]} 41. Kc2 {[%clk 0:00:22.9]}
41... Rg1 {[%clk 0:00:13.8]} 42. Ne3 {[%clk 0:00:20.5]} 42... Nb4+ {[%clk
0:00:13.5]} 43. Kc3 {[%clk 0:00:20]} 43... Na2+ {[%clk 0:00:12.5]} 44. Kd2
{[%clk 0:00:20.4]} 44... Nc1 {[%clk 0:00:10.3]} 45. b4 {[%clk 0:00:18.7]} 45...
Nb3+ {[%clk 0:00:09]} 46. Kc3 {[%clk 0:00:19]} 46... Nc1 {[%clk 0:00:08.5]} 47.
Rf7 {[%clk 0:00:18.9]} 47... Kc8 {[%clk 0:00:03.2]} 48. b5 {[%clk 0:00:17.8]}
48... Ne2+ {[%clk 0:00:03.1]} 49. Kd3 {[%clk 0:00:18.1]} 49... Nc1+ {[%clk
0:00:03.7]} 50. Ke4 {[%clk 0:00:18.6]} 50... Ne2 {[%clk 0:00:03.9]} 51. Nd5
{[%clk 0:00:16.8]} 51... Rg4+ {[%clk 0:00:03.9]} 52. f4 {[%clk 0:00:16.5]} 52...
Ng3+ {[%clk 0:00:03.6]} 53. Kf3 {[%clk 0:00:16.5]} 53... Rg8 {[%clk 0:00:02.7]}
54. Rxc7+ {[%clk 0:00:16.4]} 54... Kb8 {[%clk 0:00:03.5]} 55. Rc6 {[%clk
0:00:16.8]} 55... Nf1 {[%clk 0:00:03.1]} 56. Rxb6+ {[%clk 0:00:16.9]} 56... Ka7
{[%clk 0:00:02.3]} 57. Ra6+ {[%clk 0:00:16.8]} 57... Kb7 {[%clk 0:00:02.7]} 58.
c5 {[%clk 0:00:16.9]} 58... Nd2+ {[%clk 0:00:02.5]} 59. Ke2 {[%clk 0:00:17.3]}
59... Nb3 {[%clk 0:00:03.4]} 60. c6+ {[%clk 0:00:17.4]} 60... Kc8 {[%clk
0:00:03.1]} 61. Ra8# {[%clk 0:00:17.3]} 1-0

[Event "*** Titled Tuesday Blitz"]
[Site "Chess.com"]
[Date "2020.11.03"]
[Round "3"]
[White "Rital44"]
[Black "Malev212"]
[Result "1-0"]
[WhiteElo "2482"]
[BlackElo "2524"]
[TimeControl "180+1"]
[EndTime "10:31:41 PST"]
[Termination "Rital44 won on time"]

1. e4 {[%clk 0:03:00.9]} 1... d5 {[%clk 0:02:58.6]} 2. exd5 {[%clk 0:02:57.1]}
2... Nf6 {[%clk 0:02:58.3]} 3. Nf3 {[%clk 0:02:56.3]} 3... Qxd5 {[%clk 0:02:42]}
4. d4 {[%clk 0:02:55]} 4... Bg4 {[%clk 0:02:40]} 5. Nc3 {[%clk 0:02:52.1]} 5...
Qh5 {[%clk 0:02:33.2]} 6. Be2 {[%clk 0:02:51.1]} 6... Nc6 {[%clk 0:02:32.2]} 7.
Bf4 {[%clk 0:02:48.6]} 7... O-O-O {[%clk 0:02:30.6]} 8. h3 {[%clk 0:02:44.8]}
8... Nxd4 {[%clk 0:01:57.3]} 9. Nxd4 {[%clk 0:02:35.1]} 9... Bxe2 {[%clk
0:01:53.7]} 10. Ncxe2 {[%clk 0:02:13.5]} 10... e5 {[%clk 0:01:53]} 11. g4 {[%clk
0:02:08.5]} 11... Qg6 {[%clk 0:01:52.7]} 12. Bxe5 {[%clk 0:02:05.8]} 12... Qe4
{[%clk 0:01:51.2]} 13. O-O {[%clk 0:01:10]} 13... Qxe5 {[%clk 0:01:50.1]} 14.
Qd3 {[%clk 0:01:10.2]} 14... c5 {[%clk 0:01:43.5]} 15. Qf5+ {[%clk 0:01:09.9]}
15... Qxf5 {[%clk 0:01:38.3]} 16. Nxf5 {[%clk 0:01:10.8]} 16... g6 {[%clk
0:01:37.1]} 17. Ne3 {[%clk 0:01:10.2]} 17... Nd5 {[%clk 0:01:34.3]} 18. Nxd5
{[%clk 0:01:07.8]} 18... Rxd5 {[%clk 0:01:34]} 19. Rad1 {[%clk 0:01:08.7]} 19...
Rxd1 {[%clk 0:01:32.3]} 20. Rxd1 {[%clk 0:01:09.6]} 20... Bg7 {[%clk 0:01:30.7]}
21. c3 {[%clk 0:01:09.8]} 21... Rd8 {[%clk 0:01:25.4]} 22. Rxd8+ {[%clk
0:01:08.4]} 22... Kxd8 {[%clk 0:01:25.3]} 23. f4 {[%clk 0:01:06.6]} 23... Kd7
{[%clk 0:01:25.2]} 24. Kf2 {[%clk 0:01:06.9]} 24... Ke6 {[%clk 0:01:24.5]} 25.
Ke3 {[%clk 0:01:07.3]} 25... f5 {[%clk 0:01:24.2]} 26. b3 {[%clk 0:01:06.4]}
26... fxg4 {[%clk 0:01:20.1]} 27. hxg4 {[%clk 0:01:06.6]} 27... b5 {[%clk
0:01:13.8]} 28. c4 {[%clk 0:01:05.8]} 28... bxc4 {[%clk 0:01:13.2]} 29. bxc4
{[%clk 0:01:05.8]} 29... Bb2 {[%clk 0:01:08.4]} 30. Ke4 {[%clk 0:01:05.6]} 30...
h5 {[%clk 0:01:05.9]} 31. f5+ {[%clk 0:00:42]} 31... gxf5+ {[%clk 0:01:04.5]}
32. gxf5+ {[%clk 0:00:42.9]} 32... Kf6 {[%clk 0:01:03.7]} 33. Nf4 {[%clk
0:00:37.9]} 33... h4 {[%clk 0:01:02.2]} 34. Nd5+ {[%clk 0:00:38.5]} 34... Kg5
{[%clk 0:01:00.9]} 35. a4 {[%clk 0:00:24.7]} 35... a5 {[%clk 0:00:55.7]} 36. Nf4
{[%clk 0:00:18.7]} 36... Kg4 {[%clk 0:00:53.3]} 37. Nd3 {[%clk 0:00:15.8]} 37...
Bd4 {[%clk 0:00:47.7]} 38. Ne5+ {[%clk 0:00:10.6]} 38... Kg5 {[%clk 0:00:25.9]}
39. Nf3+ {[%clk 0:00:10.1]} 39... Kh5 {[%clk 0:00:25.4]} 40. Kf4 {[%clk
0:00:09.8]} 40... Bf6 {[%clk 0:00:22.1]} 41. Ng1 {[%clk 0:00:07.9]} 41... Kh6
{[%clk 0:00:19.6]} 42. Nh3 {[%clk 0:00:08]} 42... Kg7 {[%clk 0:00:19.9]} 43. Kg4
{[%clk 0:00:08.1]} 43... Kf7 {[%clk 0:00:20.1]} 44. Kh5 {[%clk 0:00:08.3]} 44...
Ke7 {[%clk 0:00:20]} 45. Kg6 {[%clk 0:00:08.5]} 45... Bc3 {[%clk 0:00:18.4]} 46.
Nf4 {[%clk 0:00:08.8]} 46... Kd6 {[%clk 0:00:16.4]} 47. f6 {[%clk 0:00:09.2]}
47... Kd7 {[%clk 0:00:09.7]} 48. Kg7 {[%clk 0:00:06.9]} 48... Be5 {[%clk
0:00:07.8]} 49. Ng6 {[%clk 0:00:05.6]} 49... Bd6 {[%clk 0:00:06.6]} 50. Nxh4
{[%clk 0:00:05.3]} 50... Ke6 {[%clk 0:00:07]} 51. Kg6 {[%clk 0:00:05.6]} 51...
Ke5 {[%clk 0:00:06.7]} 52. Nf5 {[%clk 0:00:05.7]} 52... Bf8 {[%clk 0:00:05.7]}
53. Ng7 {[%clk 0:00:05.5]} 53... Kd4 {[%clk 0:00:05]} 54. Ne6+ {[%clk
0:00:05.3]} 54... Kxc4 {[%clk 0:00:03.9]} 55. Nxf8 {[%clk 0:00:06.2]} 1-0

[Event "*** Titled Tuesday Blitz"]
[Site "Chess.com"]
[Date "2020.11.03"]
[Round "3"]
[White "SamuelGhimpu2003"]
[Black "Zarikovs1999"]
[Result "1/2-1/2"]
[WhiteElo "2537"]
[BlackElo "2331"]
[TimeControl "180+1"]
[EndTime "10:31:41 PST"]
[Termination "Game drawn by repetition"]

1. d4 {[%clk 0:03:00.9]} 1... Nf6 {[%clk 0:02:53.4]} 2. c4 {[%clk 0:02:54.6]}
2... e6 {[%clk 0:02:53.5]} 3. Nc3 {[%clk 0:02:54.7]} 3... Bb4 {[%clk 0:02:53.1]}
4. Qc2 {[%clk 0:02:54.7]} 4... O-O {[%clk 0:02:52.3]} 5. e4 {[%clk 0:02:54]}
5... d5 {[%clk 0:02:34.1]} 6. e5 {[%clk 0:02:53.4]} 6... Ne4 {[%clk 0:02:34.1]}
7. Bd3 {[%clk 0:02:52.5]} 7... c5 {[%clk 0:02:31.8]} 8. Ne2 {[%clk 0:02:51.9]}
8... Nc6 {[%clk 0:02:29.5]} 9. O-O {[%clk 0:02:50.1]} 9... cxd4 {[%clk
0:02:25.6]} 10. Nxe4 {[%clk 0:02:49.1]} 10... dxe4 {[%clk 0:02:22.6]} 11. Bxe4
{[%clk 0:02:50]} 11... h6 {[%clk 0:02:23.2]} 12. f4 {[%clk 0:02:39.5]} 12... Bc5
{[%clk 0:02:09.4]} 13. Kh1 {[%clk 0:02:38.4]} 13... Nb4 {[%clk 0:02:03]} 14. Qd1
{[%clk 0:02:38.5]} 14... d3 {[%clk 0:01:58.8]} 15. Nc3 {[%clk 0:02:39]} 15...
Qd4 {[%clk 0:01:42.4]} 16. a3 {[%clk 0:02:29.2]} 16... Nc2 {[%clk 0:01:40.2]}
17. Rb1 {[%clk 0:02:29.6]} 17... Nxa3 {[%clk 0:01:31.5]} 18. bxa3 {[%clk
0:02:22.2]} 18... Qxc3 {[%clk 0:01:31.7]} 19. Qxd3 {[%clk 0:02:23]} 19... Qxd3
{[%clk 0:01:29.5]} 20. Bxd3 {[%clk 0:02:23.9]} 20... Rd8 {[%clk 0:01:29.4]} 21.
Be4 {[%clk 0:02:23.6]} 21... Rd4 {[%clk 0:01:25.8]} 22. Bf3 {[%clk 0:02:08]}
22... Rxc4 {[%clk 0:01:22]} 23. Rd1 {[%clk 0:02:08.1]} 23... Rd4 {[%clk
0:00:56.6]} 24. Bb2 {[%clk 0:01:41.6]} 24... Rxd1+ {[%clk 0:00:55.6]} 25. Rxd1
{[%clk 0:01:42.5]} 25... Be7 {[%clk 0:00:50.3]} 26. Bc3 {[%clk 0:01:36.7]} 26...
Kf8 {[%clk 0:00:46.3]} 27. Bb4 {[%clk 0:01:32]} 27... Bxb4 {[%clk 0:00:40.9]}
28. axb4 {[%clk 0:01:32.9]} 28... Ke7 {[%clk 0:00:41.8]} 29. h4 {[%clk
0:01:27.8]} 29... Bd7 {[%clk 0:00:41.3]} 30. Ra1 {[%clk 0:01:23.5]} 30... Bc6
{[%clk 0:00:33.2]} 31. Bxc6 {[%clk 0:01:19.5]} 31... bxc6 {[%clk 0:00:34.1]} 32.
Kg1 {[%clk 0:01:07.6]} 32... Kd7 {[%clk 0:00:33.9]} 33. Kf2 {[%clk 0:01:07.8]}
33... Kc7 {[%clk 0:00:34.5]} 34. Ke3 {[%clk 0:01:08.2]} 34... Kb6 {[%clk
0:00:34.7]} 35. Rd1 {[%clk 0:01:08.8]} 35... Rc8 {[%clk 0:00:27.7]} 36. g4
{[%clk 0:01:00]} 36... Rc7 {[%clk 0:00:27.1]} 37. f5 {[%clk 0:00:58.5]} 37...
Kb5 {[%clk 0:00:21.3]} 38. Rd4 {[%clk 0:00:59]} 38... c5 {[%clk 0:00:14.3]} 39.
bxc5 {[%clk 0:00:58.8]} 39... Kxc5 {[%clk 0:00:09.4]} 40. fxe6 {[%clk
0:00:44.5]} 40... fxe6 {[%clk 0:00:10.3]} 41. Rd6 {[%clk 0:00:45.1]} 41... Re7
{[%clk 0:00:06.9]} 42. Kf4 {[%clk 0:00:39]} 42... a5 {[%clk 0:00:06.5]} 43. g5
{[%clk 0:00:39.5]} 43... a4 {[%clk 0:00:05]} 44. gxh6 {[%clk 0:00:37.8]} 44...
gxh6 {[%clk 0:00:05.9]} 45. Kg4 {[%clk 0:00:38.6]} 45... Ra7 {[%clk 0:00:02.6]}
46. Kh5 {[%clk 0:00:35.5]} 46... a3 {[%clk 0:00:02.6]} 47. Rd1 {[%clk
0:00:36.4]} 47... a2 {[%clk 0:00:02.9]} 48. Ra1 {[%clk 0:00:37]} 48... Kd5
{[%clk 0:00:02.4]} 49. Kxh6 {[%clk 0:00:37.9]} 49... Kxe5 {[%clk 0:00:03.3]} 50.
Kg5 {[%clk 0:00:38.1]} 50... Kd4 {[%clk 0:00:03.7]} 51. h5 {[%clk 0:00:37.4]}
51... e5 {[%clk 0:00:04.6]} 52. h6 {[%clk 0:00:37.9]} 52... e4 {[%clk 0:00:05]}
53. Kf4 {[%clk 0:00:10.8]} 53... Rf7+ {[%clk 0:00:04.4]} 54. Kg3 {[%clk
0:00:09.5]} 54... Ra7 {[%clk 0:00:03.6]} 55. Kf4 {[%clk 0:00:09.5]} 55... Rf7+
{[%clk 0:00:02.4]} 56. Kg4 {[%clk 0:00:10]} 56... Ra7 {[%clk 0:00:01.2]} 57. Kf4
{[%clk 0:00:10.5]} 1/2-1/2

[Event "*** Titled Tuesday Blitz"]
[Site "Chess.com"]
[Date "2020.11.03"]
[Round "3"]
[White "Enriquack"]
[Black "chenxiaoyuer"]
[Result "1-0"]
[WhiteElo "2261"]
[BlackElo "2488"]
[TimeControl "180+1"]
[EndTime "10:31:41 PST"]
[Termination "Enriquack won by checkmate"]

1. e4 {[%clk 0:03:00.9]} 1... c5 {[%clk 0:02:57.5]} 2. Nf3 {[%clk 0:02:59.2]}
2... d6 {[%clk 0:02:57.7]} 3. d4 {[%clk 0:02:58.8]} 3... cxd4 {[%clk 0:02:58.6]}
4. Nxd4 {[%clk 0:02:59.5]} 4... Nf6 {[%clk 0:02:59]} 5. Nc3 {[%clk 0:02:59.7]}
5... Nc6 {[%clk 0:02:59.2]} 6. Bc4 {[%clk 0:02:58.4]} 6... Bd7 {[%clk
0:02:57.6]} 7. Be3 {[%clk 0:02:54.7]} 7... Ng4 {[%clk 0:02:51.6]} 8. Nxc6 {[%clk
0:02:20.9]} 8... bxc6 {[%clk 0:02:45.7]} 9. Bd2 {[%clk 0:02:18.5]} 9... g6
{[%clk 0:02:28.5]} 10. O-O {[%clk 0:02:16]} 10... Bg7 {[%clk 0:02:27.1]} 11. h3
{[%clk 0:02:14.3]} 11... Nf6 {[%clk 0:02:22]} 12. Bb3 {[%clk 0:02:10.7]} 12...
O-O {[%clk 0:02:20.5]} 13. f4 {[%clk 0:02:06]} 13... a5 {[%clk 0:01:54.5]} 14.
Qe2 {[%clk 0:01:54.4]} 14... Qb6+ {[%clk 0:01:25.2]} 15. Be3 {[%clk 0:01:50.9]}
15... Qb7 {[%clk 0:01:25.2]} 16. a4 {[%clk 0:01:44.4]} 16... Be6 {[%clk
0:01:04.5]} 17. e5 {[%clk 0:01:35.2]} 17... dxe5 {[%clk 0:00:55.8]} 18. Bxe6
{[%clk 0:01:34]} 18... fxe6 {[%clk 0:00:53.8]} 19. fxe5 {[%clk 0:01:31.7]} 19...
Nd5 {[%clk 0:00:50.3]} 20. Nxd5 {[%clk 0:01:31.2]} 20... exd5 {[%clk 0:00:48.8]}
21. Bd4 {[%clk 0:01:23.5]} 21... e6 {[%clk 0:00:27.5]} 22. b3 {[%clk 0:01:12]}
22... Qb4 {[%clk 0:00:23.2]} 23. Bb2 {[%clk 0:00:54.5]} 23... c5 {[%clk
0:00:20.1]} 24. Ba3 {[%clk 0:00:45.5]} 24... Qd4+ {[%clk 0:00:19.5]} 25. Kh1
{[%clk 0:00:45.2]} 25... Bxe5 {[%clk 0:00:17.4]} 26. Rae1 {[%clk 0:00:44]} 26...
Rxf1+ {[%clk 0:00:13.7]} 27. Rxf1 {[%clk 0:00:42.8]} 27... Rf8 {[%clk
0:00:09.8]} 28. Bc1 {[%clk 0:00:38.9]} 28... Rxf1+ {[%clk 0:00:09]} 29. Qxf1
{[%clk 0:00:39.3]} 29... Qe4 {[%clk 0:00:09.5]} 30. Qf2 {[%clk 0:00:37.4]} 30...
c4 {[%clk 0:00:06.9]} 31. Bh6 {[%clk 0:00:32.7]} 31... Bg7 {[%clk 0:00:04.1]}
32. Bxg7 {[%clk 0:00:29.3]} 32... Kxg7 {[%clk 0:00:05]} 33. Qa7+ {[%clk
0:00:29.1]} 33... Kh6 {[%clk 0:00:05]} 34. bxc4 {[%clk 0:00:27.4]} 34... dxc4
{[%clk 0:00:05]} 35. Qxa5 {[%clk 0:00:27.6]} 35... Qe2 {[%clk 0:00:04.9]} 36.
Qc3 {[%clk 0:00:26.8]} 36... e5 {[%clk 0:00:04.7]} 37. a5 {[%clk 0:00:26.3]}
37... e4 {[%clk 0:00:04.5]} 38. a6 {[%clk 0:00:26.5]} 38... e3 {[%clk
0:00:03.5]} 39. a7 {[%clk 0:00:25.8]} 39... Qf1+ {[%clk 0:00:03.8]} 40. Kh2
{[%clk 0:00:26.1]} 40... Qf4+ {[%clk 0:00:04.6]} 41. Kh1 {[%clk 0:00:25.2]}
41... e2 {[%clk 0:00:04.9]} 42. a8=Q {[%clk 0:00:23.5]} 42... Qf1+ {[%clk
0:00:03.9]} 43. Kh2 {[%clk 0:00:23.8]} 43... Qf4+ {[%clk 0:00:03.2]} 44. Qg3
{[%clk 0:00:23.5]} 44... Qxg3+ {[%clk 0:00:03]} 45. Kxg3 {[%clk 0:00:24]} 45...
e1=Q+ {[%clk 0:00:03.9]} 46. Kh2 {[%clk 0:00:24.6]} 46... Qe5+ {[%clk
0:00:03.6]} 47. Kh1 {[%clk 0:00:24.4]} 47... Qe1+ {[%clk 0:00:03.1]} 48. Kh2
{[%clk 0:00:24.7]} 48... Qc3 {[%clk 0:00:04]} 49. Qe4 {[%clk 0:00:24.1]} 49...
Qd2 {[%clk 0:00:03.8]} 50. Kg3 {[%clk 0:00:21.6]} 50... c3 {[%clk 0:00:03.6]}
51. Kf3 {[%clk 0:00:20.7]} 51... Kg5 {[%clk 0:00:03.6]} 52. Qe3+ {[%clk
0:00:21]} 52... Qxe3+ {[%clk 0:00:03.7]} 53. Kxe3 {[%clk 0:00:21.9]} 53... Kf5
{[%clk 0:00:04.2]} 54. Kd3 {[%clk 0:00:22.2]} 54... Ke5 {[%clk 0:00:04.7]} 55.
Kxc3 {[%clk 0:00:23.1]} 55... Kf4 {[%clk 0:00:05.1]} 56. Kd4 {[%clk 0:00:23.5]}
56... Kg3 {[%clk 0:00:05.4]} 57. c4 {[%clk 0:00:24.4]} 57... Kxg2 {[%clk
0:00:06.3]} 58. c5 {[%clk 0:00:25.1]} 58... Kxh3 {[%clk 0:00:06.5]} 59. c6
{[%clk 0:00:26]} 59... g5 {[%clk 0:00:07.3]} 60. c7 {[%clk 0:00:26.9]} 60... g4
{[%clk 0:00:08.2]} 61. c8=Q {[%clk 0:00:26.9]} 61... Kh2 {[%clk 0:00:08.1]} 62.
Qf5 {[%clk 0:00:26.4]} 62... h5 {[%clk 0:00:09]} 63. Qf2+ {[%clk 0:00:25.7]}
63... Kh3 {[%clk 0:00:08.1]} 64. Ke4 {[%clk 0:00:25.7]} 64... g3 {[%clk
0:00:08.2]} 65. Qg1 {[%clk 0:00:25.8]} 65... h4 {[%clk 0:00:08.2]} 66. Ke3
{[%clk 0:00:24.4]} 66... g2 {[%clk 0:00:09.1]} 67. Kf2 {[%clk 0:00:23.9]} 67...
Kg4 {[%clk 0:00:08.9]} 68. Qxg2+ {[%clk 0:00:24.4]} 68... Kf4 {[%clk 0:00:09.8]}
69. Qh3 {[%clk 0:00:24]} 69... Ke5 {[%clk 0:00:10.7]} 70. Qxh4 {[%clk
0:00:24.4]} 70... Kd5 {[%clk 0:00:11.6]} 71. Qf4 {[%clk 0:00:24.6]} 71... Kc6
{[%clk 0:00:12.5]} 72. Qd4 {[%clk 0:00:24.3]} 72... Kb7 {[%clk 0:00:13.4]} 73.
Qd6 {[%clk 0:00:24.3]} 73... Ka7 {[%clk 0:00:14.3]} 74. Qb4 {[%clk 0:00:23.5]}
74... Ka8 {[%clk 0:00:13]} 75. Ke3 {[%clk 0:00:24.4]} 75... Ka7 {[%clk
0:00:13.9]} 76. Kd4 {[%clk 0:00:25.3]} 76... Ka8 {[%clk 0:00:14]} 77. Kd5 {[%clk
0:00:26.2]} 77... Ka7 {[%clk 0:00:14]} 78. Kd6 {[%clk 0:00:27.1]} 78... Ka8
{[%clk 0:00:14.7]} 79. Kc7 {[%clk 0:00:27.4]} 79... Ka7 {[%clk 0:00:15.6]} 80.
Qb7# {[%clk 0:00:27.5]} 1-0